fUSD/lending_fUSD_20240704
["ID","MTS","AMOUNT","RATE_DAILY","PERIOD"]
[331138518,1720100651415,10000.0,0.00011199,2]
[331138519,1720100651439,10000.0,0.00011199,2]
[331138520,1720100651463,10000.0,0.00011199,2]
[331138521,1720100651487,10000.0,0.00011199,2]
[331138522,1720100651511,10000.0,0.00011199,2]
[331138523,1720100651534,10000.0,0.00011199,2]
[331138524,1720100651558,9392.95430654,0.00011199,2]
[331138525,1720100667300,607.04569346,0.00011199,2]
[331138526,1720100667339,404.56150567,0.00011199,2]
[331138527,1720100671270,155.0,0.0001399,30]
[331138528,1720100671328,150.5,0.0001399,30]
[331138529,1720100671753,155.0,0.0001398,30]
[331138530,1720100671827,216.0,0.0001398,30]
[331138531,1720100672221,155.0,0.0001397,30]
[331138532,1720100673454,150.5,0.0001399,30]
[331138533,1720100673926,150.5,0.0001398,30]
[331138534,1720100674444,150.5,0.0001397,30]
[331138535,1720100693478,161.95,0.00010123,2]
[331138536,1720100718830,750.0,0.00011199,2]
[331138537,1720100729170,660.70344244,0.00011199,2]
[331138538,1720100731609,284.07218284,0.00011199,2]
[331138539,1720100744923,496.10852137,0.00011199,2]
[331138540,1720100792979,150.5,0.0001399,30]
[331138541,1720100793464,156.5,0.0001398,30]
[331138542,1720100798559,10988.64197088,0.00011199,2]
[331138543,1720100798713,19613.70069678,0.00011199,2]
[331138544,1720100816143,155.0,0.00011199,2]
[331138545,1720100827174,-461.6625,0.00012011,2]
[331138546,1720100827197,-204.50554,0.00012111,2]
[331138547,1720100827218,-791.0,0.00012171,2]
[331138548,1720100827239,-192.06723149,0.00012273,2]
[331138549,1720100827261,-150.0,0.00012274,2]
[331138550,1720100827282,-300.0,0.00012301,2]
[331138551,1720100827307,-299.25,0.00012314,2]
[331138552,1720100827332,-200.5715298,0.00012509,2]
[331138553,1720100835210,-99.4284702,0.00012509,2]
[331138554,1720100835234,-3092.01499812,0.0001251,2]
[331138555,1720100835258,-644.62,0.0001251,2]
[331138556,1720100835281,-200.0,0.00012569,2]
[331138557,1720100835304,-16465.63,0.00012765,2]
[331138558,1720100835329,-250.0,0.00012766,2]
[331138559,1720100835355,-4390.74,0.00013117,2]
[331138560,1720100835380,-4.11795807,0.00013128,2]
[331138561,1720100848497,2737.79461804,0.00011199,2]
[331138562,1720100929260,18225.23079513,0.00011199,2]
[331138563,1720100938828,1386.32762462,0.00011199,2]
[331138570,1720100968108,-1367.01674662,0.00012214,2]
[331138571,1720100968128,-199.48872924,0.00012302,2]
[331138572,1720100968148,-354.54499983,0.00012302,2]
[331138573,1720100968169,-977.93292431,0.00012532,2]
[331138574,1720100984325,1386.32762462,0.00011199,2]
[331138578,1720101015825,3023.727209,0.00011199,2]
[331138588,1720101032159,-286.13601,0.00012532,2]
[331138590,1720101032172,-102.94781231,0.00012532,2]
[331138592,1720101032182,-207.61218769,0.0001285,2]
[331138601,1720101032262,-1159.40455893,0.0001285,2]
[331138602,1720101032272,-346.14,0.00012916,2]
[331138603,1720101032282,-310.61,0.0001295,2]
[331138604,1720101032292,-500.0,0.00012957,2]
[331138605,1720101032302,-1975.45499067,0.00013128,2]
[331138606,1720101032311,-235.73,0.00013152,2]
[331138607,1720101032320,-250.0,0.00013196,2]
[331138608,1720101032330,-625.95,0.00013295,2]
[331138609,1720101032339,-155.0,0.00013472,2]
[331138610,1720101032349,-2004.0866,0.00013474,2]
[331138611,1720101032359,-1256.7842203,0.00013516,2]
[331138612,1720101032371,-3192.2393,0.00013521,2]
[331138613,1720101032380,-19908.2086,0.00013521,2]
[331138614,1720101032389,-1567.8844,0.00013521,2]
[331138615,1720101032400,-499.99,0.00013543,2]
[331138616,1720101032409,-8332.57851715,0.00013574,2]
[331138617,1720101032445,150.5,0.0001399,30]
[331138619,1720101032852,150.5,0.0001398,30]
[331138620,1720101033337,150.5,0.0001397,30]
[331138625,1720101037992,-1000.0,0.00013521,2]
[331138628,1720101038003,-2204.42431821,0.00013574,2]
[331138631,1720101038013,-200.0,0.000136,4]
[331138632,1720101038022,-2245.11333173,0.00013621,2]
[331138633,1720101038034,-708.23934545,0.00013621,2]
[331138634,1720101038046,-1730.94897573,0.00013621,2]
[331138635,1720101038259,-659.7163621,0.00013621,2]
[331138636,1720101038272,-569.78816292,0.00013621,2]
[331138637,1720101038284,-2123.93814826,0.00013621,2]
[331138638,1720101038298,-1451.61262776,0.00013621,2]
[331138639,1720101038310,-3735.53908701,0.00013621,2]
[331138640,1720101038323,-5685.0,0.00013621,2]
[331138644,1720101038364,-85513.85442379,0.00013621,2]
[331138647,1720101038380,-5325.76545771,0.00013621,2]
[331138649,1720101038392,-135250.48407754,0.00013621,2]
[331138650,1720101038402,-69143.6345,0.00013621,2]
[331138652,1720101038411,-174.92,0.00013699,2]
[331138655,1720101038426,-1080.27,0.00013699,2]
[331138656,1720101038435,-4126.54673029,0.0001379,2]
[331138658,1720101038445,-887.5891961,0.00013799,2]
[331138660,1720101038455,-1532.0,0.0001386,2]
[331138662,1720101038466,-220.31,0.0001389,2]
[331138664,1720101038476,-5224.13719242,0.00013938,2]
[331138666,1720101038486,-5000.0,0.00013938,2]
[331138668,1720101038497,-5000.0,0.00013938,2]
[331138670,1720101038507,-5000.0,0.00013938,2]
[331138672,1720101038517,-5000.0,0.00013938,2]
[331138674,1720101038526,-428.05075808,0.00013985,2]
[331138676,1720101038536,-315.50160688,0.00013985,2]
[331138678,1720101038546,-210.93790146,0.00013985,2]
[331138680,1720101038556,-179.6168885,0.0001399,2]
[331138682,1720101038566,-260.17,0.0001399,7]
[331138684,1720101038575,-2035.48927584,0.00013994,2]
[331138686,1720101038585,-431.16502652,0.00013999,2]
[331138688,1720101038598,-461.65351825,0.00014,2]
[331138690,1720101038607,-30793.81636113,0.00014,2]
[331138692,1720101038620,-653.67901261,0.00014,2]
[331138695,1720101038637,-717.16385142,0.00014,2]
[331138697,1720101038650,-3180.7408274,0.00014,2]
[331138699,1720101038662,-31562.41963906,0.00014,2]
[331138701,1720101038675,-48398.2736971,0.00014,2]
[331138703,1720101038688,-519784.80070032,0.00014,2]
[331138706,1720101038700,-6673.91827701,0.00014,2]
[331138708,1720101038713,-1876.36610536,0.00014,2]
[331139052,1720101042397,-1435.0078,0.00013521,2]
[331139054,1720101042412,-500.0,0.000137,5]
[331139056,1720101042422,-800.0,0.000138,5]
[331139058,1720101042432,-1734241.22872576,0.00014,2]
[331139060,1720101042442,-150.0,0.00014085,2]
[331139062,1720101042454,-193.26382296,0.00014294,2]
[331139064,1720101042464,-195.84,0.00014354,2]
[331139066,1720101042473,-887.58919604,0.00014562,2]
[331139068,1720101042483,-4126.54673028,0.00014562,2]
[331139069,1720101042496,-172.85,0.00014651,2]
[331139070,1720101042507,-2035.4892758,0.00014803,2]
[331139071,1720101042518,-574117.09178581,0.00015,2]
[331139072,1720101042528,-171.18949525,0.00015,2]
[331139073,1720101042538,-10373.25179137,0.00015,2]
[331139074,1720101042549,-202.04283076,0.00015,2]
[331139075,1720101042560,-152.10416017,0.00015,2]
[331139076,1720101042570,-174.04075633,0.00015,2]
[331139077,1720101042580,-1222.0,0.00015176,2]
[331139078,1720101042591,-155.0,0.0001519,2]
[331139079,1720101042602,-774.9999974,0.0001519,2]
[331139080,1720101042613,-347.91425735,0.0001519,2]
[331139081,1720101042623,-305.42303826,0.0001519,2]
[331139082,1720101042637,-625.95,0.00015558,2]
[331139083,1720101042648,-887.58919604,0.00015603,2]
[331139084,1720101042659,-4126.54673028,0.00015603,2]
[331139085,1720101042669,-2035.4892758,0.00015611,2]
[331139086,1720101042680,-150.76,0.00015724,2]
[331139087,1720101042690,-195.84,0.0001579,2]
[331139088,1720101042700,-2035.4892758,0.0001642,2]
[331139089,1720101042712,-887.58919604,0.00016644,2]
[331139090,1720101042722,-4126.54673028,0.00016644,2]
[331139091,1720101042732,-2493.91059926,0.00017,2]
[331139092,1720101042741,-150.76,0.00017094,2]
[331139093,1720101042752,-195.84,0.00017225,2]
[331139094,1720101042762,-2035.4892758,0.00017229,2]
[331139095,1720101042772,-887.58919604,0.00017685,2]
[331139096,1720101042782,-4126.54673028,0.00017685,2]
[331139097,1720101042792,-625.95,0.00017822,2]
[331139098,1720101042803,-413.1577798,0.00018,2]
[331139099,1720101042813,-2035.4892758,0.00018038,2]
[331139100,1720101042824,-10718.0,0.000182,5]
[331139101,1720101042835,-260.48,0.00018224,2]
[331139102,1720101042846,-428.05075808,0.00018438,2]
[331139103,1720101042857,-893.0,0.000185,2]
[331139104,1720101042867,-887.58919604,0.00018726,2]
[331139105,1720101042882,-4126.54673028,0.00018726,2]
[331139106,1720101042897,-2035.4892758,0.00018846,2]
[331139107,1720101042908,-188.95,0.00018849,30]
[331139108,1720101042923,-153.27,0.000189,2]
[331139109,1720101042933,-5000.0,0.00019,2]
[331139110,1720101042944,-250.0,0.00019178,2]
[331139111,1720101042956,-327.72,0.0001918,2]
[331139112,1720101042966,-327.72,0.0001918,2]
[331139113,1720101042976,-327.72,0.0001918,2]
[331139114,1720101042986,-327.72,0.0001918,2]
[331139115,1720101042996,-327.72,0.0001918,2]
[331139116,1720101043006,-327.72,0.0001918,2]
[331139117,1720101043016,-327.72,0.0001918,2]
[331139118,1720101043026,-327.72,0.0001918,2]
[331139119,1720101043035,-327.72,0.0001918,2]
[331139120,1720101043046,-327.72,0.0001918,2]
[331139121,1720101043056,-304.32133327,0.00019354,2]
[331139122,1720101043066,-227.14852012,0.00019389,2]
[331139123,1720101043075,-368.99034455,0.00019451,2]
[331139124,1720101043085,-155.26830026,0.00019451,2]
[331139125,1720101043095,-2035.4892758,0.00019655,2]
[331139126,1720101043105,-1161.0,0.00019696,2]
[331139127,1720101043114,-887.58919604,0.00019767,2]
[331139128,1720101043125,-4126.54673028,0.00019767,2]
[331139129,1720101043135,-205892.195723,0.000198,3]
[331139130,1720101043145,-239.57449318,0.00019899,2]
[331139131,1720101043155,-284.643402,0.000199,3]
[331139132,1720101043165,-521.94426828,0.00019997,2]
[331139133,1720101043175,-1288.01621888,0.0002,2]
[331139134,1720101043184,-867.66666303,0.0002,2]
[331139135,1720101043195,-155.0,0.0002,2]
[331139136,1720101043204,-327.11942367,0.0002,2]
[331139140,1720101043214,-6278.37531796,0.0002,2]
[331139144,1720101043225,-550.47298576,0.0002,2]
[331139146,1720101043235,-257.01629085,0.0002,2]
[331139149,1720101043245,-621.17472704,0.0002,15]
[331139152,1720101043254,-608.0,0.0002,3]
[331139155,1720101043264,-150.87470006,0.0002,2]
[331139157,1720101043275,-150.87470006,0.0002,2]
[331139158,1720101043284,-150.87470006,0.0002,2]
[331139159,1720101043295,-150.87470006,0.0002,2]
[331139160,1720101043305,-150.87470006,0.0002,2]
[331139161,1720101043315,-150.87470006,0.0002,2]
[331139162,1720101043325,-150.87470006,0.0002,2]
[331139163,1720101043336,-150.87470006,0.0002,2]
[331139164,1720101043345,-150.87470006,0.0002,2]
[331139165,1720101043355,-150.87470006,0.0002,2]
[331139166,1720101043365,-150.87470006,0.0002,2]
[331139167,1720101043374,-150.87470006,0.0002,2]
[331139168,1720101043395,-150.87470006,0.0002,2]
[331139169,1720101043408,-150.87470006,0.0002,2]
[331139170,1720101043418,-150.87470006,0.0002,2]
[331139171,1720101043430,-150.87470006,0.0002,2]
[331139172,1720101043440,-150.87470006,0.0002,2]
[331139173,1720101043450,-150.87470006,0.0002,2]
[331139174,1720101043460,-150.87470006,0.0002,2]
[331139175,1720101043471,-150.87470006,0.0002,2]
[331139176,1720101043481,-150.87470006,0.0002,2]
[331139177,1720101043492,-150.87470006,0.0002,2]
[331139178,1720101043502,-150.87470006,0.0002,2]
[331139179,1720101043514,-150.87470006,0.0002,2]
[331139180,1720101043525,-150.87470006,0.0002,2]
[331139181,1720101043536,-150.87470006,0.0002,2]
[331139182,1720101043547,-150.87470006,0.0002,2]
[331139183,1720101043557,-150.87470006,0.0002,2]
[331139184,1720101043566,-150.87470006,0.0002,2]
[331139185,1720101043576,-150.87470006,0.0002,2]
[331139186,1720101043587,-150.87470006,0.0002,2]
[331139187,1720101043596,-150.87470006,0.0002,2]
[331139188,1720101043607,-150.87470006,0.0002,2]
[331139189,1720101043616,-150.87470006,0.0002,2]
[331139190,1720101043626,-150.87470006,0.0002,2]
[331139191,1720101043639,-150.87470006,0.0002,2]
[331139192,1720101043648,-150.87470006,0.0002,2]
[331139193,1720101043658,-150.87470006,0.0002,2]
[331139194,1720101043667,-150.87470006,0.0002,2]
[331139195,1720101043677,-150.87470006,0.0002,2]
[331139196,1720101043687,-150.87470006,0.0002,2]
[331139197,1720101043697,-150.87470006,0.0002,2]
[331139198,1720101043707,-1389.97857973,0.0002008,2]
[331139199,1720101043717,-625.95,0.00020086,2]
[331139200,1720101043727,-2681.0,0.000201,3]
[331139201,1720101043736,-2018.58415497,0.000202,2]
[331139202,1720101043745,-173.16,0.00020375,2]
[331139203,1720101043755,-903.634,0.000204,2]
[331139204,1720101043765,-152.0,0.000204,2]
[331139205,1720101043775,-38221.0,0.000204,2]
[331139206,1720101043784,-152.0,0.000204,2]
[331139207,1720101043794,-209.076,0.000204,2]
[331139208,1720101043804,-151.174,0.000204,2]
[331139209,1720101043814,-200.0,0.000204,2]
[331139210,1720101043823,-151.058,0.000204,2]
[331139211,1720101043832,-157.454,0.000204,2]
[331139212,1720101043842,-170.749,0.000204,2]
[331139213,1720101043852,-2035.4892758,0.00020464,2]
[331139214,1720101043861,-260.48,0.00020502,2]
[331139215,1720101043871,-159.010163,0.00020542,2]
[331139216,1720101043884,-5319.462014,0.00020542,2]
[331139217,1720101043894,-154.91265,0.00020542,2]
[331139218,1720101043903,-4167.890012,0.00020542,2]
[331139219,1720101043913,-159.010162,0.00020542,2]
[331139220,1720101043923,-6697.450826,0.00020542,2]
[331139221,1720101043933,-22442.64904522,0.0002068,2]
[331139222,1720101043942,-6001.10146838,0.00020778,2]
[331139223,1720101043952,-5319.462014,0.00020798,2]
[331139224,1720101043962,-4167.890012,0.00020798,2]
[331139225,1720101043973,-6697.450826,0.00020798,2]
[331139226,1720101043982,-887.58919604,0.00020808,2]
[331139227,1720101043992,-4126.54673028,0.00020808,2]
[331139228,1720101044001,-1611.65,0.00020951,2]
[331139229,1720101044010,-211118.64452054,0.00021,3]
[331139230,1720101044020,-1292.35914617,0.00021,2]
[331139231,1720101044029,-203.313417,0.00021,2]
[331139232,1720101044038,-151.0,0.00021,2]
[331139233,1720101044048,-716.30161992,0.00021012,2]
[331139234,1720101044057,-5319.462014,0.00021055,2]
[331139235,1720101044068,-4167.890012,0.00021055,2]
[331139236,1720101044079,-159.010162,0.00021055,2]
[331139237,1720101044089,-6697.450826,0.00021055,2]
[331139238,1720101044099,-50000.0,0.0002107,2]
[331139239,1720101044108,-2035.4892758,0.00021273,2]
[331139240,1720101044118,-5319.462014,0.00021312,2]
[331139241,1720101044129,-4167.890012,0.00021312,2]
[331139242,1720101044139,-6697.450826,0.00021312,2]
[331139243,1720101044149,-151.0,0.00021332,2]
[331139244,1720101044158,-5892.32,0.0002137,2]
[331139245,1720101044169,-180.0,0.00021397,2]
[331139246,1720101044179,-5319.462014,0.00021569,2]
[331139247,1720101044188,-4167.890012,0.00021569,2]
[331139248,1720101044198,-159.010162,0.00021569,2]
[331139249,1720101044207,-6697.450826,0.00021569,2]
[331139250,1720101044217,-159.010163,0.00021569,2]
[331139251,1720101044227,-263.45,0.00021644,2]
[331139252,1720101044236,-151.0,0.00021663,2]
[331139253,1720101044246,-698.04452868,0.000218,10]
[331139254,1720101044255,-887.58919604,0.00021849,2]
[331139255,1720101044265,-4126.54673028,0.00021849,2]
[331139256,1720101044275,-3422.89,0.000219,2]
[331139257,1720101044284,-305.0,0.000219,2]
[331139258,1720101044295,-1060.08,0.00021918,2]
[331139259,1720101044304,-150.0,0.00021918,2]
[331139260,1720101044314,-160.73,0.00021918,2]
[331139261,1720101044323,-158.0,0.00021918,2]
[331139262,1720101044333,-150.0,0.00021918,2]
[331139263,1720101044342,-150.0,0.00021918,2]
[331139264,1720101044351,-150.0,0.00021918,2]
[331139265,1720101044361,-150.0,0.00021918,2]
[331139266,1720101044371,-150.0,0.00021918,2]
[331139267,1720101044383,-150.0,0.00021918,2]
[331139268,1720101044393,-150.0,0.00021918,2]
[331139269,1720101044404,-1000.0,0.00021991,2]
[331139270,1720101044418,-151.0,0.00021995,2]
[331139271,1720101044427,-150.0,0.00021999,10]
[331139272,1720101044437,-150.0,0.00021999,10]
[331139273,1720101044448,-150.0,0.00021999,10]
[331139274,1720101044457,-150.0,0.00021999,10]
[331139275,1720101044468,-150.0,0.00021999,10]
[331139276,1720101044479,-150.0,0.00021999,10]
[331139277,1720101044491,-150.0,0.00021999,10]
[331139278,1720101044502,-1005.42,0.00022,2]
[331139279,1720101044512,-10000.0,0.00022,2]
[331139280,1720101044522,-10000.0,0.00022,2]
[331139281,1720101044532,-10000.0,0.00022,2]
[331139282,1720101044542,-15402.04886395,0.00022,2]
[331139283,1720101044551,-10000.0,0.00022,2]
[331139284,1720101044561,-16340.91743879,0.00022,2]
[331139285,1720101044571,-10917.31947722,0.00022,2]
[331139286,1720101044582,-7541.8079521,0.00022,2]
[331139287,1720101044591,-10364.58983888,0.00022,2]
[331139288,1720101044602,-153.76983047,0.00022017,2]
[331139289,1720101044612,-209.34181798,0.00022025,2]
[331139290,1720101044621,-156.99984362,0.00022031,2]
[331139291,1720101044635,-209.34181798,0.00022032,2]
[331139292,1720101044645,-209.34181798,0.00022038,2]
[331139293,1720101044655,-151.12965899,0.00022049,2]
[331139294,1720101044666,-501.3084197,0.00022055,2]
[331139295,1720101044676,-209.34181798,0.00022057,2]
[331139296,1720101044686,-166.66666667,0.00022061,2]
[331139297,1720101044696,-755.95184702,0.00022068,2]
[331139298,1720101044706,-2035.4892758,0.00022081,2]
[331139299,1720101044716,-150.0,0.00022088,2]
[331139300,1720101044726,-12058.38227396,0.00022098,3]
[331139301,1720101044736,-151.20857539,0.00022099,2]
[331139302,1720101044746,-152.65894875,0.00022102,2]
[331139303,1720101044755,-150.21783867,0.00022118,2]
[331139304,1720101044766,-2112.352,0.00022123,2]
[331139305,1720101044776,-156.90647149,0.00022126,2]
[331139306,1720101044786,-209.34181798,0.00022131,2]
[331139307,1720101044796,-156.90647149,0.00022143,2]
[331139308,1720101044806,-3200.0,0.00022144,2]
[331139309,1720101044816,-262.15814858,0.0002216,2]
[331139310,1720101044826,-166.66666667,0.0002217,2]
[331139311,1720101044835,-755.95184702,0.0002217,2]
[331139312,1720101044845,-154.33173842,0.00022179,2]
[331139313,1720101044854,-156.01571335,0.00022186,2]
[331139314,1720101044864,-209.34181798,0.00022199,2]
[331139315,1720101044874,-159.64043736,0.00022211,2]
[331139316,1720101044887,-159.64043736,0.00022211,2]
[331139317,1720101045118,-793.14485048,0.00022211,2]
[331139318,1720101045132,-500.0,0.00022221,2]
[331139319,1720101045141,-156.90647149,0.00022275,2]
[331139320,1720101045150,-214.03327112,0.0002229,2]
[331139321,1720101045159,-209.34181798,0.00022293,2]
[331139322,1720101045169,-214.03327112,0.00022295,2]
[331139323,1720101045178,-166.66666666,0.00022298,2]
[331139324,1720101045187,-755.95184702,0.00022316,2]
[331139325,1720101045196,-151.0,0.00022326,2]
[331139326,1720101045206,-202.09426841,0.00022347,2]
[331139327,1720101045215,-625.95,0.0002235,2]
[331139328,1720101045225,-152.65894875,0.00022355,2]
[331139329,1720101045235,-154.33173842,0.00022357,2]
[331139330,1720101045244,-152.65894875,0.00022384,2]
[331139331,1720101045253,-1000.0,0.000224,2]
[331139332,1720101045262,-1000.0,0.000224,2]
[331139333,1720101045272,-1000.0,0.000224,2]
[331139334,1720101045282,-1000.0,0.000224,2]
[331139335,1720101045292,-1000.0,0.000224,2]
[331139336,1720101045303,-1000.0,0.000224,2]
[331139337,1720101045313,-1000.0,0.000224,2]
[331139338,1720101045323,-1000.0,0.000224,2]
[331139339,1720101045333,-1000.0,0.000224,2]
[331139340,1720101045344,-755.95184702,0.00022455,2]
[331139341,1720101045354,-152.65894875,0.00022464,2]
[331139342,1720101045365,-152.65894875,0.00022473,2]
[331139343,1720101045375,-191.33823209,0.00022474,2]
[331139344,1720101045398,-150.0,0.00022495,2]
[331139345,1720101045416,-262.15814858,0.00022499,2]
[331139346,1720101045427,-183.17183,0.0002251,2]
[331139347,1720101045438,-198.0,0.0002251,5]
[331139348,1720101045450,-500.0,0.00022513,2]
[331139349,1720101045461,-200.0,0.00022513,2]
[331139350,1720101045471,-202.09426841,0.00022518,2]
[331139351,1720101045483,-152.65894875,0.00022519,2]
[331139352,1720101045494,-152.32268169,0.00022526,2]
[331139353,1720101045505,-755.95184702,0.00022535,2]
[331139354,1720101045516,-214.03327112,0.00022561,2]
[331139355,1720101045525,-172.94644742,0.00022567,2]
[331139356,1720101045535,-755.95184702,0.0002258,2]
[331139357,1720101045544,-214.03327112,0.00022592,2]
[331139358,1720101045554,-156.57131876,0.000226,2]
[331139359,1720101045564,-262.15814858,0.00022611,2]
[331139360,1720101045574,-161.32143082,0.0002262,2]
[331139361,1720101045583,-262.15814858,0.00022622,2]
[331139362,1720101045593,-209.34181798,0.00022638,2]
[331139363,1720101045603,-829.38072415,0.00022639,2]
[331139364,1720101045613,-17107.798,0.00022639,2]
[331139365,1720101045623,-2402.8828,0.00022639,2]
[331139366,1720101045641,-1000.0,0.00022639,2]
[331139367,1720101045651,-156.90647149,0.00022648,2]
[331139368,1720101045660,-151.0,0.00022658,2]
[331139369,1720101045670,-151.15575418,0.00022659,2]
[331139370,1720101045680,-262.15814858,0.00022694,2]
[331139371,1720101045690,-501.3084197,0.00022695,2]
[331139372,1720101045700,-150.5,0.00022708,30]
[331139373,1720101045710,-150.0,0.0002271,2]
[331139374,1720101045719,-202.09426841,0.00022713,2]
[331139375,1720101045729,-150.5,0.00022718,30]
[331139376,1720101045739,-172.94644742,0.00022723,2]
[331139377,1720101045749,-755.95184702,0.00022726,2]
[331139378,1720101045759,-150.5,0.00022728,30]
[331139379,1720101045769,-184.0,0.00022728,30]
[331139380,1720101045780,-160.84594591,0.0002273,2]
[331139381,1720101045789,-202.09426841,0.0002273,2]
[331139382,1720101045800,-1369.25730673,0.00022738,10]
[331139383,1720101045810,-169.72300776,0.00022738,10]
[331139384,1720101045820,-150.0,0.00022738,10]
[331139385,1720101045830,-150.0,0.00022738,10]
[331139386,1720101045840,-150.0,0.00022738,10]
[331139387,1720101045849,-150.0,0.00022738,10]
[331139388,1720101045858,-150.0,0.00022738,10]
[331139389,1720101045868,-150.0,0.00022738,10]
[331139390,1720101045878,-150.0,0.00022738,10]
[331139391,1720101045900,-150.0,0.00022738,10]
[331139392,1720101045909,-150.0,0.00022738,10]
[331139393,1720101045918,-150.0,0.00022738,10]
[331139394,1720101045928,-150.0,0.00022738,10]
[331139395,1720101045938,-150.0,0.00022738,10]
[331139396,1720101045947,-155.0,0.00022739,2]
[331139397,1720101045957,-155.0,0.00022739,2]
[331139398,1720101045966,-500.0,0.00022739,4]
[331139399,1720101045975,-500.0,0.00022739,4]
[331139400,1720101045984,-500.0,0.00022739,4]
[331139401,1720101045994,-500.0,0.00022739,4]
[331139402,1720101046004,-500.0,0.00022739,4]
[331139403,1720101046014,-500.0,0.00022739,4]
[331139404,1720101046024,-500.0,0.00022739,4]
[331139405,1720101046034,-500.0,0.00022739,4]
[331139406,1720101046043,-500.0,0.00022739,4]
[331139407,1720101046052,-500.0,0.00022739,4]
[331139408,1720101046061,-500.0,0.00022739,4]
[331139409,1720101046071,-502.87341756,0.00022739,4]
[331139410,1720101046081,-500.0,0.00022739,4]
[331139411,1720101046091,-500.0,0.00022739,4]
[331139412,1720101046101,-500.0,0.00022739,4]
[331139413,1720101046110,-212.65,0.00022739,4]
[331139414,1720101046120,-448.25498222,0.00022739,2]
[331139415,1720101046135,-500.0,0.00022739,4]
[331139416,1720101046144,-500.0,0.00022739,4]
[331139417,1720101046153,-500.0,0.00022739,4]
[331139418,1720101046163,-500.0,0.00022739,4]
[331139419,1720101046172,-500.0,0.00022739,4]
[331139420,1720101046182,-500.0,0.00022739,4]
[331139421,1720101046191,-500.0,0.00022739,4]
[331139422,1720101046200,-500.0,0.00022739,4]
[331139423,1720101046210,-500.0,0.00022739,4]
[331139424,1720101046220,-500.0,0.00022739,4]
[331139425,1720101046230,-500.0,0.00022739,4]
[331139426,1720101046240,-500.0,0.00022739,4]
[331139427,1720101046249,-500.0,0.00022739,4]
[331139428,1720101046259,-500.0,0.00022739,4]
[331139429,1720101046269,-500.0,0.00022739,4]
[331139431,1720101046279,-500.0,0.00022739,4]
[331139433,1720101046289,-500.0,0.00022739,4]
[331139436,1720101046299,-500.0,0.00022739,4]
[331139438,1720101046309,-500.0,0.00022739,4]
[331139441,1720101046318,-500.0,0.00022739,4]
[331139444,1720101046328,-500.0,0.00022739,4]
[331139446,1720101046338,-500.0,0.00022739,4]
[331139448,1720101046348,-500.0,0.00022739,4]
[331139450,1720101046358,-500.0,0.00022739,4]
[331139452,1720101046367,-198.53504222,0.00022739,4]
[331139454,1720101046379,-500.0,0.00022739,4]
[331139456,1720101046390,-458.43757792,0.00022739,4]
[331139457,1720101046401,-500.0,0.00022739,4]
[331139458,1720101046412,-500.0,0.00022739,4]
[331139459,1720101046422,-500.0,0.00022739,4]
[331139460,1720101046431,-500.0,0.00022739,4]
[331139461,1720101046445,-500.0,0.00022739,4]
[331139462,1720101046458,-500.0,0.00022739,4]
[331139463,1720101046468,-500.0,0.00022739,4]
[331139464,1720101046477,-500.0,0.00022739,4]
[331139465,1720101046487,-500.0,0.00022739,4]
[331139466,1720101046496,-500.0,0.00022739,4]
[331139467,1720101046507,-500.0,0.00022739,4]
[331139468,1720101046517,-500.0,0.00022739,4]
[331139469,1720101046526,-542.45794093,0.00022739,4]
[331139470,1720101046536,-500.0,0.00022739,4]